fUST/lending_fUST_20260106
["ID","MTS","AMOUNT","RATE_DAILY","PERIOD"]
[400511300,1767685840917,-336.0,0.00017998,2]
[400511302,1767685840927,-151.0,0.00017998,2]
[400511304,1767685840936,-151.0,0.00017998,2]
[400511306,1767685840946,-152.0,0.00017998,2]
[400511308,1767685840955,-336.0,0.00017998,2]
[400511310,1767685840965,-347.0,0.00017998,2]
[400511312,1767685840974,-151.0,0.00017998,2]
[400511314,1767685840983,-151.0,0.00017998,2]
[400511316,1767685840993,-152.0,0.00017998,2]
[400511318,1767685841002,-336.0,0.00017998,2]
[400511320,1767685841012,-347.0,0.00017998,2]
[400511322,1767685841020,-151.0,0.00017998,2]
[400511324,1767685841030,-151.0,0.00017998,2]
[400511326,1767685841039,-152.0,0.00017998,2]
[400511328,1767685841048,-336.0,0.00017998,2]
[400511330,1767685841057,-347.0,0.00017998,2]
[400511332,1767685841066,-187.9115595,0.00017998,2]
[400511334,1767685841075,-151.0,0.00017998,2]
[400511336,1767685841084,-152.0,0.00017998,2]
[400511338,1767685841094,-336.0,0.00017998,2]
[400511340,1767685841103,-347.0,0.00017998,2]
[400511342,1767685841112,-151.0,0.00017998,2]
[400511343,1767685841121,-266.60656086,0.00017998,2]
[400511345,1767685841131,-347.0,0.00017998,2]
[400511347,1767685841140,-151.0,0.00017998,2]
[400511349,1767685841149,-336.0,0.00017998,2]
[400511351,1767685841158,-347.0,0.00017998,2]
[400511353,1767685841167,-151.0,0.00017998,2]
[400511355,1767685841176,-347.0,0.00017998,2]
[400511357,1767685841185,-347.0,0.00017998,2]
[400511359,1767685841195,-234.13989214,0.00017998,2]
[400511361,1767685841204,-376.8200359,0.00018,2]
[400511363,1767685841213,-376.8200359,0.00018,2]
[400511365,1767685841223,-376.8200359,0.00018,2]
[400511367,1767685841232,-753.6400718,0.00018,2]
[400511369,1767685841242,-376.8200359,0.00018,2]
[400511371,1767685841251,-376.8200359,0.00018,2]
[400511373,1767685841260,-376.8200359,0.00018,2]
[400511375,1767685841270,-376.8200359,0.00018,2]
[400511377,1767685841278,-376.8200359,0.00018,2]
[400511379,1767685841288,-376.8200359,0.00018,2]
[400511381,1767685841297,-376.8200359,0.00018,2]
[400511383,1767685841307,-376.8200359,0.00018,2]
[400511385,1767685841316,-376.8200359,0.00018,2]
[400511387,1767685841325,-376.8200359,0.00018,2]
[400511389,1767685841336,-528.0406814,0.00018,2]
[400511391,1767685841346,-134246.18661091,0.00018,2]
[400511393,1767685841355,-5091.79020606,0.00018,2]
[400511395,1767685841365,-151.0,0.00018057,2]
[400511397,1767685841375,-160.0,0.00018136,3]
[400511399,1767685841385,-160.0,0.00018136,3]
[400511401,1767685841397,-402.0,0.00018244,2]
[400511403,1767685841406,-1000.0,0.00018249,5]
[400511406,1767685841416,-156.236454,0.00018267,2]
[400511408,1767685841425,-151.0,0.00018267,2]
[400511409,1767685841434,-151.0,0.00018267,2]
[400511411,1767685841443,-151.0,0.00018267,2]
[400511413,1767685841452,-286.0795197,0.00018267,2]
[400511415,1767685841461,-496.47127164,0.00018267,2]
[400511417,1767685841474,-250.0,0.00018267,2]
[400511419,1767685841484,-264.57870743,0.00018267,2]
[400511421,1767685841493,-151.0,0.00018267,2]
[400511423,1767685841502,-250.0,0.00018267,2]
[400511425,1767685841511,-500.0,0.00018267,2]
[400511427,1767685841520,-250.0,0.00018267,2]
[400511429,1767685841530,-500.0,0.00018267,2]
[400511431,1767685841539,-250.0,0.00018267,2]
[400511433,1767685841549,-500.0,0.00018267,2]
[400511435,1767685841559,-250.0,0.00018267,2]
[400511437,1767685841568,-500.0,0.00018267,2]
[400511439,1767685841578,-250.0,0.00018267,2]
[400511441,1767685841588,-500.0,0.00018267,2]
[400511443,1767685841599,-250.0,0.00018267,2]
[400511445,1767685841611,-500.0,0.00018267,2]
[400511447,1767685841623,-255.24985543,0.00018267,2]
[400511449,1767685841632,-500.0,0.00018267,2]
[400511451,1767685841642,-30000.0,0.00018267,2]
[400511453,1767685841653,-500.0,0.00018267,2]
[400511455,1767685841662,-500.0,0.00018267,2]
[400511457,1767685841671,-500.0,0.00018267,2]
[400511459,1767685841680,-500.0,0.00018267,2]
[400511461,1767685841690,-500.0,0.00018267,2]
[400511463,1767685841700,-2398.4119403,0.00018267,2]
[400511465,1767685841709,-500.0,0.00018267,2]
[400511467,1767685841720,-201.83324692,0.00018267,2]
[400511480,1767685841837,-298.16675308,0.00018267,2]
[400511482,1767685841846,-447.03514963,0.00018267,2]
[400511485,1767685841858,-52.96485037,0.00018267,2]
[400511487,1767685841867,-500.0,0.00018267,2]
[400511489,1767685841876,-500.0,0.00018267,2]
[400511491,1767685841884,-500.0,0.00018267,2]
[400511493,1767685841894,-500.0,0.00018267,2]
[400511495,1767685841905,-500.0,0.00018267,2]
[400511497,1767685841914,-500.0,0.00018267,2]
[400511499,1767685841924,-408.4156913,0.00018267,2]
[400511501,1767685841934,-151.0,0.00018267,2]
[400511503,1767685841943,-151.0,0.00018267,2]
[400511505,1767685841952,-151.0,0.00018267,2]
[400511507,1767685841962,-151.0,0.00018267,2]
[400511509,1767685841972,-151.0,0.00018267,2]
[400511511,1767685841981,-151.0,0.00018267,2]
[400511513,1767685841990,-299.09793067,0.00018267,2]
[400511515,1767685841999,-2030.29667201,0.00018267,2]
[400511516,1767685842008,-2830.63533989,0.00018275,4]
[400511517,1767685842020,-189.57169551,0.00018275,4]
[400511518,1767685842030,-6980.66110244,0.00018286,3]
[400511519,1767685842040,-2172.22358985,0.00018286,3]
[400511520,1767685842051,-1205.24441864,0.00018286,3]
[400511521,1767685842062,-479.50755848,0.00018286,3]
[400511522,1767685842073,-689.99231085,0.00018286,3]
[400511523,1767685842116,-677.68906201,0.00018286,3]
[400511524,1767685842191,-6521.58195773,0.00018286,3]
[400511525,1767685842200,-816.77711922,0.00018286,2]
[400511526,1767685842211,-100.70680978,0.00018286,2]
[400511528,1767685842221,-917.483929,0.00018286,2]
[400511530,1767685842230,-917.483929,0.00018286,2]
[400511532,1767685842240,-917.483929,0.00018286,2]
[400511534,1767685842249,-181.282421,0.00018286,2]
[400511536,1767685842258,-181.282421,0.00018286,2]
[400511538,1767685842268,-181.282421,0.00018286,2]
[400511540,1767685842277,-181.282421,0.00018286,2]
[400511542,1767685842286,-402.0,0.00018293,2]
[400511544,1767685842296,-402.0,0.0001832,2]
[400511547,1767685842305,-1000.0,0.00018352,2]
[400511548,1767685842314,-800.0,0.00018356,7]
[400511550,1767685842323,-993.4473141,0.0001836,2]
[400511552,1767685842333,-402.0,0.00018371,2]
[400511555,1767685842342,-151.0,0.00018381,2]
[400511556,1767685842351,-402.0,0.00018411,2]
[400511558,1767685842359,-2724.01769809,0.0001845,8]
[400511561,1767685842371,-2119.23322838,0.0001845,8]
[400511563,1767685842380,-551.961145,0.00018493,2]
[400511565,1767685842389,-2000.0,0.00018529,3]
[400511567,1767685842398,-2000.0,0.00018537,3]
[400511569,1767685842409,-2000.0,0.00018546,3]
[400511571,1767685842418,-2000.0,0.00018555,3]
[400511573,1767685842426,-402.0,0.00018559,2]
[400511575,1767685842435,-2000.0,0.00018564,3]
[400511577,1767685842445,-2000.0,0.00018573,3]
[400511579,1767685842453,-13031.34095959,0.00018578,2]
[400511581,1767685842462,-2000.0,0.00018581,3]
[400511583,1767685842473,-17582.80005294,0.00018586,3]
[400511859,1767685846748,-879.9514622,0.00018436,2]
[400511909,1767685847208,-4120.0485378,0.00018436,2]
[400511911,1767685847217,-15910.10180266,0.00018586,3]
[400511913,1767685847229,-4507.0981444,0.00018586,3]
[400511915,1767685847238,-7367.5795902,0.00018586,3]
[400511918,1767685847249,-510.61843461,0.00018586,3]
[400511920,1767685847260,-663.69901594,0.00018586,3]
[400511923,1767685847271,-1457.47843236,0.00018586,3]
[400511926,1767685847280,-2000.0,0.0001859,3]
[400511929,1767685847290,-2000.0,0.00018599,3]
[400511931,1767685847299,-8.16159717,0.00018608,3]
[400512387,1767685965477,566.2277976,0.00030136,120]
[400512419,1767686111586,151.0,0.00030136,120]
[400512421,1767686198809,578.59866948,0.00030136,120]
[400512426,1767686654125,1291.4887926,0.0003013,120]
[400512427,1767686880806,180.02,2.997e-05,2]
[400512428,1767686881172,180.0,2.997e-05,2]
[400512429,1767686985092,199.87505257,0.00030136,120]
[400512482,1767687031901,-5000.0,0.00012717,2]
[400512484,1767687031911,-296.68711168,0.00012845,2]
[400512486,1767687031921,-1200.0,0.00012994,2]
[400512488,1767687031930,-500.0,0.00012995,2]
[400512490,1767687031939,-300.0,0.00012995,2]
[400512492,1767687031948,-150.9793568,0.00012996,2]
[400512494,1767687031959,-500.0,0.00012996,2]
[400512496,1767687031968,-500.0,0.00012996,2]
[400512498,1767687031977,-500.0,0.00013065,2]
[400512500,1767687031986,-500.0,0.00013065,2]
[400512501,1767687031996,-500.0,0.00013065,2]
[400512503,1767687032006,-500.0,0.00013065,2]
[400512505,1767687032015,-500.0,0.00013065,2]
[400512507,1767687032024,-126.6826305,0.00013065,2]
[400512509,1767687032042,-35.32213283,0.00013065,2]
[400512511,1767687032052,-268.09277259,0.00013065,2]
[400512578,1767687037942,-5000.0,0.0001259,2]
[400512580,1767687037952,-231.90722741,0.00013065,2]
[400512582,1767687037967,-500.0,0.00013065,2]
[400512584,1767687037977,-500.0,0.00013065,2]
[400512586,1767687037986,-227.66339468,0.00013065,2]
[400512588,1767687037996,-500.0,0.00013065,2]
[400512590,1767687038007,-500.0,0.00013065,2]
[400512592,1767687038016,-500.0,0.00013065,2]
[400512594,1767687038026,-436.52548181,0.00013065,2]
[400512595,1767687038038,-500.0,0.00013065,2]
[400512597,1767687038048,-500.0,0.00013065,2]
[400512600,1767687038059,-500.0,0.00013065,2]
[400512602,1767687038069,-500.0,0.00013065,2]
[400512604,1767687038080,-500.0,0.00013065,2]
[400512605,1767687038090,-500.0,0.00013065,2]
[400512607,1767687038100,-500.0,0.00013065,2]
[400512609,1767687038110,-500.0,0.00013065,2]
[400512611,1767687038120,-500.0,0.00013065,2]
[400512613,1767687038131,-500.0,0.00013065,2]
[400512615,1767687038140,-500.0,0.00013065,2]
[400512617,1767687038150,-500.0,0.00013065,2]
[400512619,1767687038162,-500.0,0.00013065,2]
[400512621,1767687038172,-500.0,0.00013065,2]
[400512623,1767687038182,-500.0,0.00013065,2]
[400512625,1767687038191,-500.0,0.00013065,2]
[400512627,1767687038201,-500.0,0.00013065,2]
[400512629,1767687038211,-500.0,0.00013065,2]
[400512630,1767687038220,-500.0,0.00013065,2]
[400512632,1767687038231,-500.0,0.00013065,2]
[400512634,1767687038241,-500.0,0.00013065,2]
[400512636,1767687038251,-500.0,0.00013065,2]
[400512638,1767687038261,-500.0,0.00013065,2]
[400512640,1767687038271,-500.0,0.00013065,2]
[400512642,1767687038281,-500.0,0.00013065,2]
[400512644,1767687038291,-500.0,0.00013065,2]
[400512662,1767687038469,-500.0,0.00013065,2]
[400512664,1767687038479,-500.0,0.00013065,2]
[400512666,1767687038489,-191.13825826,0.00013065,2]
[400512668,1767687038499,-500.0,0.00013065,2]
[400512670,1767687038509,-500.0,0.00013065,2]
[400512672,1767687038519,-500.0,0.00013065,2]
[400512674,1767687038528,-500.0,0.00013065,2]
[400512676,1767687038538,-500.0,0.00013065,2]
[400512677,1767687038547,-500.0,0.00013065,2]
[400512679,1767687038557,-500.0,0.00013065,2]
[400512681,1767687038567,-529.42246115,0.00013065,2]
[400512683,1767687038577,-500.0,0.00013065,2]
[400512685,1767687038587,-500.0,0.00013065,2]
[400512687,1767687038598,-500.0,0.00013065,2]
[400512689,1767687038608,-500.0,0.00013065,2]
[400512691,1767687038619,-500.0,0.00013065,2]
[400512693,1767687038629,-500.0,0.00013065,2]
[400512695,1767687038640,-500.0,0.00013065,2]
[400512697,1767687038649,-500.0,0.00013065,2]
[400512699,1767687038659,-256.48536168,0.00013065,2]
[400512701,1767687038670,-500.0,0.00013065,2]
[400512703,1767687038679,-500.0,0.00013065,2]
[400512705,1767687038688,-500.0,0.00013065,2]
[400512707,1767687038698,-285.02770705,0.00013065,2]
[400512709,1767687038708,-653.14895463,0.00013065,2]
[400512710,1767687038717,-500.0,0.00013065,2]
[400512712,1767687038726,-290.64928148,0.00013065,2]
[400512714,1767687038736,-653.14895463,0.00013065,2]
[400512716,1767687038745,-653.14895463,0.00013065,2]
[400512718,1767687038755,-653.14895463,0.00013065,2]
[400512720,1767687038765,-653.14895463,0.00013065,2]
[400512722,1767687038776,-653.14895463,0.00013065,2]
[400512724,1767687038786,-653.14895463,0.00013065,2]
[400512725,1767687038797,-653.14895463,0.00013065,2]
[400512727,1767687038806,-656.41469941,0.00013065,2]
[400512728,1767687038816,-656.41469941,0.00013065,2]
[400512730,1767687038826,-656.41469941,0.00013065,2]
[400512732,1767687038835,-656.41469941,0.00013065,2]
[400512734,1767687038844,-656.41469941,0.00013065,2]
[400512736,1767687038854,-656.41469941,0.00013065,2]
[400512737,1767687038864,-656.41469941,0.00013065,2]
[400512739,1767687038874,-656.41469941,0.00013065,2]
[400512741,1767687038884,-656.41469941,0.00013065,2]
[400512743,1767687038894,-656.41469941,0.00013065,2]
[400512744,1767687038904,-705.29664511,0.00013065,2]
[400512746,1767687038914,-705.29664511,0.00013065,2]
[400512748,1767687038923,-705.29664511,0.00013065,2]
[400512750,1767687038933,-713.9772192,0.00013065,2]
[400512752,1767687038943,-713.9772192,0.00013065,2]
[400512754,1767687038953,-713.9772192,0.00013065,2]
[400512756,1767687038966,-713.9772192,0.00013065,2]
[400512758,1767687038976,-713.9772192,0.00013065,2]
[400512760,1767687038986,-1000000.0,0.00013066,2]
[400512762,1767687038997,-500.0,0.00013132,2]
[400512764,1767687039009,-500.0,0.00013133,2]
[400512766,1767687039019,-505.2082048,0.00013133,2]
[400512768,1767687039030,-164.755,0.00013206,2]
[400512770,1767687039041,-500.0,0.00013269,2]
[400512771,1767687039051,-500.0,0.0001327,2]
[400512773,1767687039061,-206.53497562,0.00013272,2]
[400512775,1767687039070,-490.04819215,0.00013273,2]
[400512777,1767687039080,-500.64608746,0.00013273,2]
[400512779,1767687039089,-501.16405093,0.00013273,2]
[400512781,1767687039099,-501.51757633,0.00013273,2]
[400512783,1767687039108,-500.0,0.00013273,2]
[400512785,1767687039120,-371.86903657,0.00013273,2]
[400512787,1767687039130,-497.04994014,0.00013273,2]
[400512788,1767687039139,-501.42111072,0.00013273,2]
[400512790,1767687039149,-500.0,0.00013273,2]
[400512792,1767687039159,-531.35882107,0.00013273,2]
[400512794,1767687039169,-501.29533477,0.00013273,2]
[400512796,1767687039179,-504.65778591,0.00013273,2]
[400512798,1767687039188,-501.84503713,0.00013273,2]
[400512800,1767687039199,-502.95447988,0.00013273,2]
[400512802,1767687039210,-500.0,0.00013273,2]
[400512804,1767687039220,-441.88443319,0.00013273,2]
[400512806,1767687039230,-501.26007946,0.00013273,2]
[400512808,1767687039239,-161.85370912,0.00013273,2]
[400512810,1767687039249,-500.81718699,0.00013273,2]
[400512812,1767687039258,-501.14470625,0.00013273,2]
[400512814,1767687039267,-500.0,0.00013273,2]
[400512816,1767687039280,-500.94489153,0.00013273,2]
[400512818,1767687039290,-501.02097579,0.00013273,2]
[400512820,1767687039300,-500.0,0.00013273,2]
[400512822,1767687039310,-502.20988126,0.00013273,2]
[400512824,1767687039320,-501.7117257,0.00013273,2]
[400512825,1767687039330,-500.0,0.00013273,2]
[400512828,1767687039340,-501.85390902,0.00013273,2]
[400512830,1767687039350,-500.0,0.00013273,2]
[400512832,1767687039360,-500.0,0.00013273,2]
[400512834,1767687039370,-376.8200359,0.000133,2]
[400512836,1767687039380,-151.0,0.000134,2]
[400512838,1767687039391,-151.0,0.000134,2]
[400512840,1767687039400,-151.0,0.000134,2]
[400512842,1767687039409,-151.0,0.000134,2]
[400512844,1767687039420,-600.0,0.00013406,2]
[400512846,1767687039430,-500.0,0.00013407,2]
[400512848,1767687039439,-300.0,0.00013434,2]
[400512850,1767687039448,-300.0,0.00013434,2]
[400512852,1767687039457,-300.0,0.00013434,2]
[400512854,1767687039467,-300.0,0.00013434,2]
[400512856,1767687039476,-300.0,0.00013434,2]
[400512858,1767687039486,-300.0,0.00013434,2]
[400512859,1767687039495,-300.0,0.00013434,2]
[400512861,1767687039504,-300.0,0.00013434,2]
[400512863,1767687039513,-300.0,0.00013434,2]
[400512865,1767687039523,-300.0,0.00013434,2]
[400512867,1767687039533,-300.0,0.00013434,2]
[400512869,1767687039543,-300.0,0.00013434,2]
[400512871,1767687039552,-300.0,0.00013434,2]
[400512873,1767687039561,-300.0,0.00013434,2]
[400512875,1767687039572,-300.0,0.00013434,2]
[400512877,1767687039582,-600.0,0.00013535,2]
[400512879,1767687039592,-500.0,0.00013544,2]
[400512881,1767687039602,-400.0,0.00013581,2]
[400512883,1767687039611,-220.05,0.00013581,2]
[400512885,1767687039621,-220.05,0.00013581,2]
[400512887,1767687039630,-300.0,0.00013673,2]
[400512889,1767687039640,-200.0,0.00013675,2]
[400512891,1767687039650,-400.0,0.00013681,2]
[400512893,1767687039660,-154.22403567,0.00013683,2]
[400512895,1767687039670,-500.0,0.00013698,2]
[400512897,1767687039680,-500.0,0.00013698,2]
[400512899,1767687039689,-500.0,0.00013698,2]
[400512901,1767687039698,-500.0,0.00013698,2]
[400512903,1767687039708,-500.0,0.00013698,2]
[400512905,1767687039717,-500.0,0.00013698,2]
[400512906,1767687039726,-500.0,0.00013698,2]
[400512908,1767687039736,-500.0,0.00013698,2]
[400512910,1767687039745,-500.0,0.00013698,2]
[400512912,1767687039756,-500.0,0.00013698,2]
[400512914,1767687039765,-500.0,0.00013698,2]
[400512916,1767687039775,-500.0,0.00013698,2]
[400512918,1767687039785,-500.0,0.00013698,2]
[400512920,1767687039795,-500.0,0.00013698,2]
[400512922,1767687039804,-500.0,0.00013698,2]
[400512924,1767687039813,-500.0,0.00013698,2]
[400512926,1767687039822,-500.0,0.00013698,2]
[400512928,1767687039831,-500.0,0.00013698,2]
[400512930,1767687039841,-362.49716895,0.00013698,2]
[400512932,1767687039851,-220.01529461,0.00013698,2]
[400512934,1767687039860,-500.0,0.00013698,2]
[400512936,1767687039870,-500.0,0.00013698,2]
[400512938,1767687039879,-484.16169617,0.00013698,2]
[400512940,1767687039888,-559.41668429,0.00013698,2]
[400512942,1767687039897,-500.0,0.00013698,2]
[400512943,1767687039907,-500.0,0.00013698,2]
[400512945,1767687039916,-500.0,0.00013698,2]
[400512947,1767687039925,-500.0,0.00013698,2]
[400512949,1767687039934,-500.0,0.00013698,2]
[400512951,1767687039944,-500.0,0.00013698,2]
[400512953,1767687039954,-500.0,0.00013698,2]
[400512955,1767687039967,-500.0,0.00013698,2]
[400512957,1767687039977,-500.0,0.00013698,2]
[400512959,1767687039986,-500.0,0.00013698,2]
[400512961,1767687039995,-500.0,0.00013698,2]
[400512963,1767687040006,-500.0,0.00013698,2]
[400512965,1767687040015,-500.0,0.00013698,2]
[400512967,1767687040025,-500.0,0.00013698,2]
[400512969,1767687040035,-500.0,0.00013698,2]
[400512971,1767687040045,-500.0,0.00013698,2]
[400512972,1767687040054,-500.0,0.00013698,2]
[400512974,1767687040064,-500.0,0.00013698,2]
[400512976,1767687040073,-500.0,0.00013698,2]
[400512978,1767687040083,-500.0,0.00013698,2]
[400512980,1767687040092,-546.288124,0.00013699,2]
[400512982,1767687040101,-500.0,0.00013699,2]
[400512984,1767687040110,-500.0,0.00013699,2]
[400512986,1767687040119,-500.0,0.00013699,2]
[400512988,1767687040129,-500.0,0.00013699,2]
[400512990,1767687040138,-500.0,0.00013699,2]
[400512991,1767687040147,-500.0,0.00013699,2]
[400512993,1767687040157,-563.41663894,0.00013699,2]
[400512995,1767687040166,-500.0,0.00013699,2]
[400512996,1767687040175,-500.0,0.00013699,2]
[400512997,1767687040184,-500.0,0.00013699,2]
[400512998,1767687040194,-628.540749,0.00013699,2]
[400512999,1767687040204,-1041.38457236,0.00013821,2]
[400513000,1767687040213,-364.76040242,0.00013821,2]
[400513001,1767687040223,-1000.0,0.00013821,2]
[400513002,1767687040232,-1000.0,0.00013821,2]
[400513003,1767687040243,-1000.0,0.00013821,2]
[400513004,1767687040252,-1000.0,0.00013821,2]
[400513005,1767687040262,-5000.0,0.0001386,2]
[400513006,1767687040272,-376.8200359,0.00014,2]
[400513007,1767687040282,-376.8200359,0.00014,2]
[400513008,1767687040291,-376.8200359,0.00014,2]
[400513009,1767687040300,-376.8200359,0.00014,2]
[400513010,1767687040310,-376.8200359,0.00014,2]
[400513011,1767687040319,-904.7251312,0.00014,2]
[400513012,1767687040330,-376.8200359,0.00014041,2]
[400513013,1767687040339,-1041.66666667,0.0001405,2]
[400513014,1767687040348,-376.8200359,0.000141,2]
[400513015,1767687040358,-376.8200359,0.000141,2]
[400513016,1767687040367,-376.8200359,0.000141,2]
[400513017,1767687040377,-376.8200359,0.00014141,2]
[400513018,1767687040386,-376.8200359,0.00014141,2]
[400513019,1767687040395,-376.8200359,0.00014141,2]
[400513020,1767687040405,-1086.22979982,0.00014175,2]
[400513021,1767687040414,-2022.45959964,0.00014197,2]
[400513022,1767687040423,-600.0,0.00014221,2]
[400513023,1767687040433,-1001.57471188,0.00014247,2]
[400513024,1767687040442,-690.51130763,0.00014247,2]
[400513025,1767687040451,-770.20741447,0.00014247,2]
[400513026,1767687040460,-1000.0,0.00014247,2]
[400513027,1767687040470,-1000.0,0.00014247,2]
[400513028,1767687040479,-692.18736728,0.00014247,2]
[400513031,1767687040496,-1000.0,0.00014247,2]
[400513033,1767687040508,-533.7772006,0.00014247,2]
[400513035,1767687040519,-420.0,0.00014251,2]
[400513037,1767687040528,-200.0,0.00014356,5]
[400513039,1767687040537,-1500.0,0.00014368,2]
[400513041,1767687040546,-1500.0,0.00014368,2]
[400513043,1767687040556,-1500.0,0.00014368,2]
[400513045,1767687040565,-1500.0,0.00014368,2]
[400513047,1767687040575,-100000.0,0.00014736,2]
[400513049,1767687040585,-900.0,0.00014768,2]
[400513051,1767687040595,-240.00397434,0.00014787,2]
[400513053,1767687040605,-1500.0,0.00014795,2]
[400513055,1767687040615,-1500.0,0.00014795,2]
[400513057,1767687040624,-1506.10461326,0.00014795,2]
[400513059,1767687040634,-350.09079178,0.00014845,2]
[400513061,1767687040646,-720.0,0.00014888,2]
[400513064,1767687040656,-2000.0,0.00014916,2]
[400513066,1767687040666,-528.44505692,0.00014916,2]
[400513067,1767687040676,-1007.63173447,0.00014916,2]
[400513070,1767687040685,-387.16845353,0.00014916,2]
[400513072,1767687040695,-1000.0,0.00015,2]
[400513074,1767687040704,-1097.32284949,0.00015,2]
[400513076,1767687040713,-428.58195222,0.00015057,2]
[400513078,1767687040725,-800.0,0.00015068,2]
[400513080,1767687040734,-289.37550664,0.00015316,2]
[400513082,1767687040743,-2000.0,0.00015342,2]
[400513084,1767687040753,-505.12105821,0.00015342,2]
[400513086,1767687040763,-200.0,0.00015436,5]
[400513087,1767687040772,-1493.85987564,0.00015464,2]
[400513089,1767687040781,-376.8200359,0.00015541,2]
[400513091,1767687040790,-376.8200359,0.00015541,2]
[400513094,1767687040802,-587.0,0.00015629,2]
[400513096,1767687040811,-163.06318377,0.00015736,2]
[400513098,1767687040820,-2500.0,0.0001589,2]
[400513100,1767687040830,-5000.0,0.00015939,2]
[400513102,1767687040839,-3000.0,0.00016,2]
[400513104,1767687040849,-3000.0,0.0001601,2]
[400513106,1767687040858,-3000.0,0.0001602,2]
[400513108,1767687040867,-3000.0,0.0001603,2]
[400513110,1767687040877,-3000.0,0.0001604,2]
[400513112,1767687040886,-5758.300242,0.0001605,2]
[400513114,1767687040897,-801.099384,0.00016164,2]
[400513116,1767687040907,-864.0,0.00016377,2]
[400513118,1767687040918,-500.0,0.00016438,2]
[400513120,1767687040927,-594.0421836,0.00016438,2]
[400513122,1767687040937,-3000.0,0.00016438,2]
[400513123,1767687040946,-515418.66568697,0.00016731,2]
[400513124,1767687040956,-403.49447188,0.00016845,2]
[400513125,1767687040970,-3500.0,0.00016986,2]
[400513126,1767687040980,-1200.0,0.00017,2]
[400513127,1767687040990,-151.0,0.00017086,2]
[400513128,1767687041000,-160.0,0.00017116,3]
[400513129,1767687041011,-742.0,0.0001714,2]
[400513130,1767687041021,-260.932,0.00017233,2]
[400513131,1767687041032,-1365.0,0.00017233,2]
[400513132,1767687041042,-2145.0,0.00017233,2]
[400513134,1767687041052,-155.6642443,0.00017315,2]
[400513136,1767687041062,-600.6566519,0.00017315,2]
[400513138,1767687041072,-151.0,0.00017409,2]
[400513140,1767687041081,-4000.0,0.00017534,2]
[400513142,1767687041091,-151.0,0.00017733,2]
[400513143,1767687041102,-160.0,0.00017796,4]
[400513144,1767687041112,-500.0,0.00017934,2]
[400513146,1767687041122,-264.57870743,0.00017934,2]
[400513147,1767687041132,-500.0,0.00017934,2]
[400513149,1767687041142,-2398.4119403,0.00017934,2]
[400513151,1767687041151,-500.0,0.00017934,2]
[400513153,1767687041161,-500.0,0.00017934,2]
[400513155,1767687041170,-500.0,0.00017934,2]
[400513156,1767687041180,-500.0,0.00017934,2]
[400513158,1767687041190,-500.0,0.00017934,2]
[400513160,1767687041200,-500.0,0.00017934,2]
[400513161,1767687041210,-500.0,0.00017934,2]
[400513162,1767687041219,-500.0,0.00017934,2]
[400513163,1767687041229,-500.0,0.00017934,2]
[400513164,1767687041238,-500.0,0.00017934,2]
[400513165,1767687041248,-496.47127164,0.00017934,2]
[400513166,1767687041258,-500.0,0.00017934,2]
[400513167,1767687041268,-250.0,0.00017934,2]
[400513168,1767687041278,-500.0,0.00017934,2]
[400513169,1767687041288,-250.0,0.00017934,2]
[400513170,1767687041298,-491.77526848,0.00017934,2]